[Event "Kragero Resort International 2022"]
[Site "Kragero"]
[Date "2022.02.26"]
[Round "7.28"]
[White "Omtvedt, Aleksander"]
[Black "Shehzad, Shazil"]
[Result "0-1"]
[ECO "D05"]
[WhiteElo "1867"]
[BlackElo "2182"]
[Annotator "NA"]
[PlyCount "48"]
[EventDate "2022.02.23"]
[EventType "swiss"]
[EventCountry "NOR"]
[SourceTitle "playchess.com"]
[Source "ChessBase"]
[SourceQuality "1"]
[TimeControl "5400+30"]

1. d4 {[%emt 0:00:30]} Nf6 {[%emt 0:02:50]} 2. Nf3 {[%emt 0:01:19]} c5 {[%emt 0:00:07]} 3. c3 {[%emt 0:03:56]} d5 {[%emt 0:02:02]} 4. e3 {[%emt 0:00:46]} e6 {[%emt 0:05:19]} 5. Nbd2 {[%emt 0:00:14]} Bd6 {[%emt 0:00:28]} 6. dxc5 {[%emt 0:02:21]} Bxc5 {[%emt 0:00:34]} 7. b4 {[%emt 0:00:12]} Bd6 {[%emt 0:00:40]} 8. a3 {[%emt 0:02:39]} a5 {[%emt 0:00:39]} 9. Bb2 {[%emt 0:04:46]} e5 {[%emt 0:01:46]} 10. Be2 {[%emt 0:02:31]} h5 {[%emt 0:01:57]} 11. b5 {[%emt 0:07:27]} Nbd7 {[%emt 0:03:25]} (11... e4 $1 $11 12. Nd4 Nbd7) 12. c4 {[%emt 0:00:42]} e4 {[%emt 0:00:17]} 13. Nd4 {[%emt 0:01:16]} Ne5 {[%emt 0:00:44]} 14. cxd5 {[%emt 0:03:29]} Bg4 {[%emt 0:01:24]} 15. f3 $15 {[%emt 0:03:51]} (15. O-O $14) 15... Nxd5 {[%emt 0:06:04]} 16. Qb3 {[%emt 0:03:11]} exf3 {[%emt 0:06:58]} 17. N2xf3 {[%emt 0:06:45]} a4 {[%emt 0:03:43]} 18. Qa2 {[%emt 0:03:23]} Nxe3 {[%emt 0:04:10]} 19. Kf2 {[%emt 0:01:48]} Bxf3 {[%emt 0:02:49]} 20. gxf3 {[%emt 0:01:25]} Qg5 {[%emt 0:11:42]} 21. Bc1 {[%emt 0:04:28]} Qf4 {[%emt 0:00:48]} 22. Qd2 {[%emt 0:05:44]} N5g4+ {[%emt 0:01:47]} 23. Kg1 {[%emt 0:02:40]} Bc5 {[%emt 0:02:14]} 24. fxg4 {[%emt 0:02:39]} Bxd4 {[%emt 0:00:21]} 0-1

[Event "Kragero Resort International 2022"]
[Site "Kragero"]
[Date "2022.02.26"]
[Round "8.1"]
[White "Jonsson, Kristjan Dagur"]
[Black "Ostensen, Nicolai Maxime"]
[Result "0-1"]
[ECO "E17"]
[WhiteElo "1797"]
[BlackElo "1728"]
[Annotator "NA"]
[PlyCount "98"]
[EventDate "2022.02.23"]
[EventType "swiss"]
[EventCountry "NOR"]
[SourceTitle "playchess.com"]
[Source "ChessBase"]
[SourceQuality "1"]
[TimeControl "5400+30"]

1. d4 {[%emt 0:00:03]} d5 {[%emt 0:00:06]} 2. c4 {[%emt 0:00:08]} e6 {[%emt 0:00:09]} 3. Nf3 {[%emt 0:00:22]} Nf6 {[%emt 0:00:08]} 4. g3 {[%emt 0:00:22]} Be7 {[%emt 0:00:16]} 5. Bg2 {[%emt 0:00:10]} O-O {[%emt 0:00:06]} 6. O-O {[%emt 0:00:25]} b6 {[%emt 0:01:37]} 7. Ne5 {[%emt 0:04:17]} Bb7 {[%emt 0:01:08]} 8. Qc2 {[%emt 0:00:51]} Qc8 {[%emt 0:03:59]} 9. Nc3 {[%emt 0:04:32]} dxc4 {[%emt 0:02:58]} 10. e4 {[%emt 0:02:26]} Nc6 {[%emt 0:04:17]} 11. Nxc6 {[%emt 0:05:08]} Bxc6 {[%emt 0:00:05]} 12. d5 {[%emt 0:07:44]} Bb7 {[%emt 0:03:06]} 13. Rd1 {[%emt 0:03:27]} e5 {[%emt 0:03:01]} 14. Qa4 {[%emt 0:04:59]} Bc5 {[%emt 0:02:16]} 15. Qxc4 {[%emt 0:10:20]} Ng4 {[%emt 0:06:54]} 16. Rd2 {[%emt 0:02:45]} Nf6 {[%emt 0:00:49]} 17. b4 {[%emt 0:02:10]} Bd4 {[%emt 0:00:49]} 18. Bb2 {[%emt 0:01:52]} c6 {[%emt 0:01:19]} 19. Qb3 {[%emt 0:04:01]} c5 {[%emt 0:04:01]} 20. bxc5 {[%emt 0:02:29]} bxc5 {[%emt 0:01:09]} 21. Nb5 {[%emt 0:03:20]} Ba6 {[%emt 0:02:31]} 22. Bxd4 {[%emt 0:04:50]} exd4 {[%emt 0:01:55]} 23. Nd6 {[%emt 0:01:30]} Qc7 {[%emt 0:01:04]} 24. Nc4 {[%emt 0:01:04]} Rab8 {[%emt 0:00:27]} 25. Qc2 {[%emt 0:02:59]} Rb4 {[%emt 0:01:25]} 26. Nb2 {[%emt 0:01:02]} Rfb8 {[%emt 0:00:41]} 27. Nd3 {[%emt 0:01:55]} Rc4 {[%emt 0:00:07]} 28. Qd1 {[%emt 0:01:35]} Rc3 {[%emt 0:00:44]} 29. Rc1 {[%emt 0:04:29]} Rxc1 {[%emt 0:00:30]} 30. Qxc1 {[%emt 0:01:57]} Nd7 {[%emt 0:03:15]} 31. Qa3 {[%emt 0:04:47]} Bxd3 {[%emt 0:02:15]} 32. Qxd3 {[%emt 0:01:12]} Ne5 {[%emt 0:00:52]} 33. Qf1 {[%emt 0:02:36]} Rb6 {[%emt 0:00:53]} 34. f4 {[%emt 0:01:15]} Ng4 {[%emt 0:01:25]} 35. e5 {[%emt 0:00:59]} Ne3 {[%emt 0:01:25]} 36. d6 {[%emt 0:01:17]} Qb8 {[%emt 0:00:50]} 37. Qe2 {[%emt 0:02:11]} Rb1+ {[%emt 0:01:49]} 38. Kf2 {[%emt 0:00:10]} Qb6 {[%emt 0:03:04]} 39. Qf3 {[%emt 0:01:00]} g6 {[%emt 0:06:11]} 40. d7 {[%emt 0:01:19]} Kg7 {[%emt 0:00:52]} 41. Qa8 {[%emt 0:01:16]} Rb2 {[%emt 0:00:13]} 42. d8=Q {[%emt 0:01:46]} Rxd2+ {[%emt 0:00:07]} 43. Kf3 {[%emt 0:00:59]} Rf2+ {[%emt 0:00:11]} 44. Kxf2 {[%emt 0:01:03]} Qb2+ {[%emt 0:00:04]} 45. Ke1 {[%emt 0:01:06]} Qc1+ {[%emt 0:00:11]} 46. Ke2 {[%emt 0:00:39]} Qd1+ {[%emt 0:00:16]} 47. Kf2 {[%emt 0:00:07]} Qd2+ {[%emt 0:00:03]} 48. Kg1 {[%emt 0:00:16]} Qe1+ {[%emt 0:00:04]} 49. Bf1 {[%emt 0:00:02]} Qxf1# {[%emt 0:00:06]} 0-1

[Event "Kragero Resort International 2022"]
[Site "Kragero"]
[Date "2022.02.26"]
[Round "8.2"]
[White "Haug, Havard"]
[Black "Haugen, Lars Tormod"]
[Result "1/2-1/2"]
[ECO "B22"]
[WhiteElo "1801"]
[BlackElo "1710"]
[Annotator "NA"]
[PlyCount "100"]
[EventDate "2022.02.23"]
[EventType "swiss"]
[EventCountry "NOR"]
[SourceTitle "playchess.com"]
[Source "ChessBase"]
[SourceQuality "1"]
[TimeControl "5400+30"]

1. e4 {[%emt 0:00:01]} c5 {[%emt 0:07:53]} 2. c3 {[%emt 0:00:05]} Nf6 {[%emt 0:00:23]} 3. e5 {[%emt 0:00:11]} Nd5 {[%emt 0:00:15]} 4. d4 {[%emt 0:00:05]} cxd4 {[%emt 0:00:25]} 5. Nf3 {[%emt 0:00:08]} e6 {[%emt 0:00:41]} 6. cxd4 {[%emt 0:00:07]} d6 {[%emt 0:00:21]} 7. Nc3 {[%emt 0:00:19]} Nxc3 {[%emt 0:01:44]} 8. bxc3 {[%emt 0:00:06]} Qc7 {[%emt 0:00:20]} 9. Bd2 {[%emt 0:00:13]} Nd7 {[%emt 0:01:39]} 10. exd6 {[%emt 0:00:20]} Bxd6 {[%emt 0:00:04]} 11. Bd3 {[%emt 0:00:16]} b6 {[%emt 0:01:11]} 12. Be4 {[%emt 0:03:05]} Bb7 {[%emt 0:06:25]} 13. Qc2 {[%emt 0:03:49]} Bxe4 {[%emt 0:07:52]} 14. Qxe4 {[%emt 0:00:59]} O-O {[%emt 0:02:06]} 15. O-O {[%emt 0:00:37]} e5 {[%emt 0:08:18]} 16. Rfe1 {[%emt 0:06:09]} exd4 {[%emt 0:02:12]} 17. cxd4 {[%emt 0:03:52]} Nf6 {[%emt 0:01:28]} 18. Qf5 {[%emt 0:03:36]} Qc8 {[%emt 0:07:11]} 19. Qd3 {[%emt 0:09:18]} h6 {[%emt 0:08:16]} 20. Nh4 {[%emt 0:03:11]} Re8 {[%emt 0:07:40]} 21. Rxe8+ {[%emt 0:03:29]} Nxe8 {[%emt 0:01:26]} 22. Nf5 {[%emt 0:01:43]} Bf8 {[%emt 0:03:07]} 23. Bf4 {[%emt 0:10:14]} Qd7 {[%emt 0:03:03]} 24. d5 {[%emt 0:08:13]} Nd6 {[%emt 0:02:29]} 25. Nxd6 {[%emt 0:06:49]} Bxd6 {[%emt 0:00:06]} 26. Bxd6 {[%emt 0:00:08]} Qxd6 {[%emt 0:00:25]} 27. g3 {[%emt 0:03:19]} Rc8 {[%emt 0:11:37]} 28. Rd1 {[%emt 0:02:11]} Rc5 {[%emt 0:01:01]} 29. Re1 {[%emt 0:01:06]} Rc8 {[%emt 0:03:57]} 30. Qb5 {[%emt 0:00:48]} Kh7 {[%emt 0:01:01]} 31. Rd1 {[%emt 0:01:01]} Rc5 {[%emt 0:03:13]} 32. Qe8 {[%emt 0:00:52]} Rc7 {[%emt 0:00:49]} 33. Qe4+ {[%emt 0:06:10]} g6 {[%emt 0:01:07]} 34. h4 {[%emt 0:02:46]} h5 {[%emt 0:00:54]} 35. Qd4 {[%emt 0:01:43]} Rd7 {[%emt 0:00:59]} 36. Rd3 {[%emt 0:03:44]} Re7 {[%emt 0:02:31]} 37. Rc3 {[%emt 0:02:13]} Qe5 {[%emt 0:00:36]} 38. Qxe5 {[%emt 0:04:02]} Rxe5 {[%emt 0:00:01]} 39. Rc7 {[%emt 0:00:10]} Kg7 {[%emt 0:00:37]} 40. d6 {[%emt 0:01:17]} Rd5 {[%emt 0:00:26]} 41. d7 {[%emt 0:00:39]} a5 {[%emt 0:00:30]} 42. Rb7 {[%emt 0:00:41]} Kf8 {[%emt 0:01:07]} 43. Rxb6 {[%emt 0:03:31]} Rxd7 {[%emt 0:00:10]} 44. Rb5 {[%emt 0:00:43]} a4 {[%emt 0:00:44]} 45. Rb4 {[%emt 0:01:06]} a3 {[%emt 0:00:10]} 46. Ra4 {[%emt 0:01:52]} Rd3 {[%emt 0:00:10]} 47. Kf1 {[%emt 0:00:09]} Rc3 {[%emt 0:00:56]} 48. Ke1 {[%emt 0:00:13]} Kg7 {[%emt 0:00:44]} 49. Kd2 {[%emt 0:00:53]} Rf3 {[%emt 0:00:23]} 50. Ke2 {[%emt 0:03:12]} Rc3 {[%emt 0:00:10]} 1/2-1/2

[Event "Kragero Resort International 2022"]
[Site "Kragero"]
[Date "2022.02.26"]
[Round "8.3"]
[White "Thorisson, Benedikt"]
[Black "Engeset, Audun"]
[Result "1/2-1/2"]
[ECO "B33"]
[WhiteElo "1790"]
[BlackElo "1823"]
[Annotator "NA"]
[PlyCount "53"]
[EventDate "2022.02.23"]
[EventType "swiss"]
[EventCountry "NOR"]
[SourceTitle "playchess.com"]
[Source "ChessBase"]
[SourceQuality "1"]
[TimeControl "5400+30"]

1. e4 {[%emt 0:00:02]} c5 {[%emt 0:00:17]} 2. Nf3 {[%emt 0:00:07]} Nc6 {[%emt 0:00:05]} 3. d4 {[%emt 0:00:13]} cxd4 {[%emt 0:00:15]} 4. Nxd4 {[%emt 0:00:05]} Nf6 {[%emt 0:00:23]} 5. Nc3 {[%emt 0:00:15]} e5 {[%emt 0:01:18]} 6. Ndb5 {[%emt 0:00:15]} d6 {[%emt 0:00:12]} 7. Bg5 {[%emt 0:00:26]} a6 {[%emt 0:01:10]} 8. Na3 {[%emt 0:00:19]} b5 {[%emt 0:00:11]} 9. Nd5 {[%emt 0:00:34]} Be7 {[%emt 0:00:20]} 10. Bxf6 {[%emt 0:01:18]} Bxf6 {[%emt 0:00:12]} 11. c3 {[%emt 0:00:38]} Bg5 {[%emt 0:00:43]} 12. Nc2 {[%emt 0:00:55]} O-O {[%emt 0:00:46]} 13. Bd3 {[%emt 0:01:30]} Be6 {[%emt 0:02:44]} 14. Nce3 {[%emt 0:00:58]} Bxe3 {[%emt 0:06:42]} 15. Nxe3 {[%emt 0:00:11]} Ne7 {[%emt 0:03:41]} 16. O-O {[%emt 0:04:56]} d5 {[%emt 0:07:12]} 17. exd5 {[%emt 0:00:59]} Nxd5 {[%emt 0:01:03]} 18. Nxd5 {[%emt 0:00:32]} Qxd5 {[%emt 0:00:32]} 19. Bc2 {[%emt 0:05:25]} Qc5 {[%emt 0:04:12]} 20. Bb3 {[%emt 0:04:11]} Rad8 {[%emt 0:02:32]} 21. Qf3 {[%emt 0:07:36]} Rd2 {[%emt 0:01:44]} 22. Rab1 {[%emt 0:09:38]} Bxb3 {[%emt 0:06:13]} 23. axb3 {[%emt 0:00:29]} Rfd8 {[%emt 0:04:03]} 24. Rfe1 {[%emt 0:18:35]} Qd6 {[%emt 0:11:23]} 25. g3 {[%emt 0:04:27]} g6 {[%emt 0:01:59]} 26. Qe4 {[%emt 0:05:34]} f6 {[%emt 0:04:49]} 27. Re2 {[%emt 0:03:05]} 1/2-1/2

[Event "Kragero Resort International 2022"]
[Site "Kragero"]
[Date "2022.02.26"]
[Round "8.4"]
[White "Carlin, Tormod"]
[Black "Amundsen, Ask"]
[Result "0-1"]
[ECO "D37"]
[WhiteElo "1630"]
[BlackElo "1819"]
[Annotator "NA"]
[PlyCount "100"]
[EventDate "2022.02.23"]
[EventType "swiss"]
[EventCountry "NOR"]
[SourceTitle "playchess.com"]
[Source "ChessBase"]
[SourceQuality "1"]
[TimeControl "5400+30"]

1. d4 {[%emt 0:00:02]} d5 {[%emt 0:00:09]} 2. c4 {[%emt 0:00:07]} e6 {[%emt 0:00:06]} 3. Nf3 {[%emt 0:00:08]} Nf6 {[%emt 0:00:06]} 4. Nc3 {[%emt 0:00:05]} Be7 {[%emt 0:00:33]} 5. Bf4 {[%emt 0:00:14]} O-O {[%emt 0:01:58]} 6. e3 {[%emt 0:00:07]} a6 {[%emt 0:01:35]} 7. cxd5 {[%emt 0:01:49]} Nxd5 {[%emt 0:01:44]} 8. Nxd5 {[%emt 0:03:14]} exd5 {[%emt 0:00:44]} 9. Bd3 {[%emt 0:00:55]} Bg4 {[%emt 0:08:01]} 10. O-O {[%emt 0:03:29]} c6 {[%emt 0:09:28]} 11. h3 {[%emt 0:09:57]} Bh5 {[%emt 0:00:21]} 12. Be2 {[%emt 0:02:27]} Nd7 {[%emt 0:06:35]} 13. Ne5 {[%emt 0:04:30]} Bxe2 {[%emt 0:00:20]} 14. Qxe2 {[%emt 0:00:07]} Nf6 {[%emt 0:03:04]} 15. Rab1 {[%emt 0:03:08]} Ne4 {[%emt 0:00:22]} 16. Qc2 {[%emt 0:00:57]} Qa5 {[%emt 0:01:05]} 17. Ra1 {[%emt 0:09:19]} Qd8 {[%emt 0:06:23]} 18. Nd3 {[%emt 0:03:25]} a5 {[%emt 0:01:48]} 19. b3 {[%emt 0:12:24]} Ba3 {[%emt 0:02:41]} 20. Nc5 {[%emt 0:03:32]} Bxc5 {[%emt 0:00:37]} 21. dxc5 {[%emt 0:00:08]} Qf6 {[%emt 0:01:25]} 22. a3 {[%emt 0:02:07]} Rfe8 {[%emt 0:00:44]} 23. Rfd1 {[%emt 0:01:25]} h6 {[%emt 0:01:45]} 24. Rd4 {[%emt 0:00:28]} Re6 {[%emt 0:02:22]} 25. Rc1 {[%emt 0:04:18]} Qe7 {[%emt 0:01:17]} 26. Ra4 {[%emt 0:02:44]} Qd8 {[%emt 0:03:50]} 27. Qd1 {[%emt 0:06:06]} Rg6 {[%emt 0:01:17]} 28. b4 {[%emt 0:01:56]} Qh4 {[%emt 0:04:25]} 29. g3 {[%emt 0:04:35]} Qxh3 {[%emt 0:00:27]} 30. Rxa5 {[%emt 0:01:02]} Rxa5 {[%emt 0:00:19]} 31. bxa5 {[%emt 0:00:06]} h5 {[%emt 0:00:18]} 32. Qf1 {[%emt 0:00:10]} Qc8 {[%emt 0:01:23]} 33. Kh2 {[%emt 0:01:32]} Qa8 {[%emt 0:01:34]} 34. Bc7 {[%emt 0:03:16]} Qc8 {[%emt 0:00:33]} 35. Bf4 {[%emt 0:00:10]} Nd2 {[%emt 0:01:26]} 36. Qh3 {[%emt 0:00:45]} Qe8 {[%emt 0:04:44]} 37. Qxh5 {[%emt 0:01:30]} Qe4 {[%emt 0:00:11]} 38. Rd1 {[%emt 0:06:08]} Nf3+ {[%emt 0:01:55]} 39. Kh3 {[%emt 0:01:09]} Re6 {[%emt 0:01:55]} 40. Qg4 {[%emt 0:00:53]} Ne5 {[%emt 0:06:03]} 41. Qh4 {[%emt 0:02:24]} Ng6 {[%emt 0:03:33]} 42. Qd8+ {[%emt 0:00:47]} Kh7 {[%emt 0:00:19]} 43. Qg5 {[%emt 0:04:27]} Qf3 {[%emt 0:00:23]} 44. Rd4 {[%emt 0:02:05]} Nxf4+ {[%emt 0:01:28]} 45. Rxf4 {[%emt 0:00:40]} Qh1+ {[%emt 0:00:07]} 46. Kg4 {[%emt 0:00:09]} Rg6 {[%emt 0:00:07]} 47. Rxf7 {[%emt 0:00:29]} Qh6 {[%emt 0:00:47]} 48. f4 {[%emt 0:00:43]} Rxg5+ {[%emt 0:00:15]} 49. fxg5 {[%emt 0:00:07]} Qe6+ {[%emt 0:00:19]} 50. Rf5 {[%emt 0:00:14]} g6 {[%emt 0:00:10]} 0-1

[Event "Kragero Resort International 2022"]
[Site "Kragero"]
[Date "2022.02.26"]
[Round "8.5"]
[White "Hammari, Vinjar"]
[Black "Stromhaug, Kristoffer Wang"]
[Result "0-1"]
[ECO "E07"]
[WhiteElo "1775"]
[BlackElo "1694"]
[Annotator "NA"]
[PlyCount "86"]
[EventDate "2022.02.23"]
[EventType "swiss"]
[EventCountry "NOR"]
[SourceTitle "playchess.com"]
[Source "ChessBase"]
[SourceQuality "1"]
[TimeControl "5400+30"]

1. d4 {[%emt 0:00:03]} d5 {[%emt 0:00:04]} 2. c4 {[%emt 0:00:04]} c6 {[%emt 0:00:06]} 3. Nf3 {[%emt 0:00:04]} Nf6 {[%emt 0:00:11]} 4. Nc3 {[%emt 0:00:09]} e6 {[%emt 0:00:33]} 5. g3 {[%emt 0:00:07]} Nbd7 {[%emt 0:01:05]} 6. b3 {[%emt 0:01:52]} Be7 {[%emt 0:02:52]} 7. Bg2 {[%emt 0:00:05]} O-O {[%emt 0:00:38]} 8. O-O {[%emt 0:00:05]} Re8 {[%emt 0:03:48]} 9. Qc2 {[%emt 0:00:54]} b6 {[%emt 0:03:08]} 10. Rd1 {[%emt 0:00:10]} Ba6 {[%emt 0:00:47]} 11. Nd2 {[%emt 0:07:36]} e5 {[%emt 0:05:08]} 12. dxe5 {[%emt 0:01:11]} Nxe5 {[%emt 0:00:06]} 13. Nf3 {[%emt 0:02:38]} Nxf3+ {[%emt 0:09:08]} 14. Bxf3 {[%emt 0:00:10]} Bb4 {[%emt 0:03:03]} 15. Bb2 {[%emt 0:12:08]} Qc7 {[%emt 0:08:59]} 16. cxd5 {[%emt 0:00:45]} cxd5 {[%emt 0:00:42]} 17. Qf5 {[%emt 0:00:58]} Bxc3 {[%emt 0:01:25]} 18. Rac1 {[%emt 0:00:06]} Qe5 {[%emt 0:00:20]} 19. Qxf6 {[%emt 0:01:46]} Qxf6 {[%emt 0:00:51]} 20. Bxc3 {[%emt 0:00:05]} Qe7 {[%emt 0:01:32]} 21. Rxd5 {[%emt 0:00:18]} Bb7 {[%emt 0:01:03]} 22. Re5 {[%emt 0:00:20]} Qxe5 {[%emt 0:01:01]} 23. Bxe5 {[%emt 0:00:16]} Bxf3 {[%emt 0:00:07]} 24. Bf4 {[%emt 0:00:24]} Rxe2 {[%emt 0:00:12]} 25. a4 {[%emt 0:00:15]} Rae8 {[%emt 0:00:51]} 26. Be3 {[%emt 0:00:08]} Rb2 {[%emt 0:00:13]} 27. h3 {[%emt 0:00:12]} Rxb3 {[%emt 0:00:11]} 28. g4 {[%emt 0:00:07]} Ra3 {[%emt 0:00:42]} 29. Rc4 {[%emt 0:00:07]} Bd1 {[%emt 0:00:42]} 30. Kg2 {[%emt 0:00:23]} Rxa4 {[%emt 0:00:22]} 31. Rc7 {[%emt 0:00:05]} Be2 {[%emt 0:00:43]} 32. Kg3 {[%emt 0:00:08]} Ra8 {[%emt 0:00:39]} 33. Re7 {[%emt 0:00:35]} b5 {[%emt 0:00:31]} 34. Bc5 {[%emt 0:00:31]} Bc4 {[%emt 0:00:27]} 35. Rb7 {[%emt 0:00:06]} Ra2 {[%emt 0:00:42]} 36. Kf4 {[%emt 0:00:15]} h6 {[%emt 0:00:33]} 37. h4 {[%emt 0:00:05]} a5 {[%emt 0:00:32]} 38. g5 {[%emt 0:00:05]} hxg5+ {[%emt 0:00:57]} 39. hxg5 {[%emt 0:00:08]} b4 {[%emt 0:01:01]} 40. g6 {[%emt 0:00:04]} fxg6 {[%emt 0:00:47]} 41. Kg5 {[%emt 0:00:22]} Rd2 {[%emt 0:01:51]} 42. Kxg6 {[%emt 0:00:21]} Bf7+ {[%emt 0:00:37]} 43. Rxf7 {[%emt 0:00:41]} Ra6+ {[%emt 0:00:59]} 0-1

[Event "Kragero Resort International 2022"]
[Site "Kragero"]
[Date "2022.02.26"]
[Round "8.6"]
[White "Stolp, Aleksander"]
[Black "Bjarnason, Snorri Vikanes"]
[Result "1/2-1/2"]
[ECO "A34"]
[WhiteElo "1680"]
[BlackElo "1606"]
[Annotator "NA"]
[PlyCount "167"]
[EventDate "2022.02.23"]
[EventType "swiss"]
[EventCountry "NOR"]
[SourceTitle "playchess.com"]
[Source "ChessBase"]
[SourceQuality "1"]
[TimeControl "5400+30"]

1. c4 {[%emt 0:00:23]} c5 {[%emt 0:00:16]} 2. g3 {[%emt 0:00:08]} Nf6 {[%emt 0:00:15]} 3. Bg2 {[%emt 0:00:04]} d5 {[%emt 0:00:06]} 4. cxd5 {[%emt 0:00:26]} Nxd5 {[%emt 0:00:05]} 5. Nc3 {[%emt 0:00:05]} Nc7 {[%emt 0:00:07]} 6. d3 {[%emt 0:00:20]} Nc6 {[%emt 0:00:17]} 7. Nf3 {[%emt 0:00:14]} e5 {[%emt 0:00:07]} 8. b3 {[%emt 0:00:27]} Be7 {[%emt 0:01:24]} 9. Bb2 {[%emt 0:00:06]} Be6 {[%emt 0:00:23]} 10. Rc1 {[%emt 0:00:42]} b6 {[%emt 0:02:52]} 11. h4 {[%emt 0:02:58]} f6 {[%emt 0:12:38]} 12. Qc2 {[%emt 0:02:36]} Qd7 {[%emt 0:02:13]} 13. Ne4 {[%emt 0:13:21]} Rc8 {[%emt 0:02:45]} 14. Qd2 {[%emt 0:03:30]} Nd5 {[%emt 0:01:15]} 15. Nc3 {[%emt 0:00:41]} O-O {[%emt 0:01:10]} 16. O-O {[%emt 0:01:39]} Rfd8 {[%emt 0:05:30]} 17. Rfd1 {[%emt 0:00:15]} h6 {[%emt 0:09:19]} 18. Kh2 {[%emt 0:04:55]} Kf7 {[%emt 0:21:41]} 19. Rg1 {[%emt 0:08:11]} g5 {[%emt 0:02:19]} 20. h5 {[%emt 0:00:12]} Nxc3 {[%emt 0:01:09]} 21. Qxc3 {[%emt 0:00:12]} Nd4 {[%emt 0:01:42]} 22. Qe1 {[%emt 0:02:32]} Bg4 {[%emt 0:00:40]} 23. Bxd4 {[%emt 0:01:06]} cxd4 {[%emt 0:00:13]} 24. Qd2 {[%emt 0:00:37]} Ba3 {[%emt 0:01:07]} 25. Rxc8 {[%emt 0:02:27]} Rxc8 {[%emt 0:06:11]} 26. e3 {[%emt 0:00:34]} Bxh5 {[%emt 0:01:38]} 27. exd4 {[%emt 0:01:41]} Bxf3 {[%emt 0:00:43]} 28. Bxf3 {[%emt 0:00:05]} Qxd4 {[%emt 0:00:21]} 29. Be4 {[%emt 0:01:00]} Qb2 {[%emt 0:06:54]} 30. Qxb2 {[%emt 0:00:17]} Bxb2 {[%emt 0:00:07]} 31. f3 {[%emt 0:00:16]} Bd4 {[%emt 0:01:16]} 32. Rg2 {[%emt 0:02:12]} h5 {[%emt 0:01:06]} 33. Bd5+ {[%emt 0:00:53]} Kg6 {[%emt 0:00:42]} 34. b4 {[%emt 0:01:51]} f5 {[%emt 0:02:10]} 35. g4 {[%emt 0:01:57]} Rh8 {[%emt 0:00:32]} 36. gxf5+ {[%emt 0:02:26]} Kxf5 {[%emt 0:03:09]} 37. b5 {[%emt 0:00:44]} Kf4 {[%emt 0:00:11]} 38. Rc2 {[%emt 0:00:26]} Bc5 {[%emt 0:02:09]} 39. Kg2 {[%emt 0:01:21]} g4 {[%emt 0:00:53]} 40. fxg4 {[%emt 0:00:28]} hxg4 {[%emt 0:00:12]} 41. Be6 {[%emt 0:00:48]} g3 {[%emt 0:00:21]} 42. Rc4+ {[%emt 0:00:21]} Bd4 {[%emt 0:00:15]} 43. Bh3 {[%emt 0:00:25]} Rh7 {[%emt 0:01:15]} 44. Rc8 {[%emt 0:01:44]} Bc5 {[%emt 0:03:08]} 45. Rd8 {[%emt 0:02:45]} Rg7 {[%emt 0:01:01]} 46. Rd7 {[%emt 0:00:13]} Rxd7 {[%emt 0:00:17]} 47. Bxd7 {[%emt 0:00:05]} Bf2 {[%emt 0:00:12]} 48. Be8 {[%emt 0:00:37]} Ke3 {[%emt 0:00:10]} 49. Bg6 {[%emt 0:00:10]} Kd4 {[%emt 0:00:18]} 50. Bf5 {[%emt 0:00:12]} Kc5 {[%emt 0:00:51]} 51. Bd7 {[%emt 0:02:32]} Kd4 {[%emt 0:00:26]} 52. Bf5 {[%emt 0:00:06]} Kc3 {[%emt 0:00:07]} 53. Bg6 {[%emt 0:00:06]} Kb4 {[%emt 0:00:11]} 54. Be8 {[%emt 0:00:08]} Ka4 {[%emt 0:00:11]} 55. Bd7 {[%emt 0:00:08]} Kb4 {[%emt 0:00:14]} 56. Be8 {[%emt 0:00:04]} Kc5 {[%emt 0:00:09]} 57. Bd7 {[%emt 0:00:06]} Kd6 {[%emt 0:00:07]} 58. Be8 {[%emt 0:00:16]} Ke7 {[%emt 0:00:11]} 59. Bc6 {[%emt 0:00:05]} Kd8 {[%emt 0:00:05]} 60. Be4 {[%emt 0:00:19]} Kd7 {[%emt 0:01:10]} 61. Bc6+ {[%emt 0:00:54]} Kd6 {[%emt 0:00:22]} 62. Be8 {[%emt 0:00:07]} Kc5 {[%emt 0:00:04]} 63. Bd7 {[%emt 0:00:14]} Kb4 {[%emt 0:00:05]} 64. Be8 {[%emt 0:00:07]} Ka5 {[%emt 0:00:04]} 65. Bd7 {[%emt 0:00:08]} a6 {[%emt 0:00:12]} 66. bxa6 {[%emt 0:01:12]} Kxa6 {[%emt 0:00:06]} 67. Be8 {[%emt 0:00:05]} b5 {[%emt 0:00:23]} 68. Bf7 {[%emt 0:00:09]} Kb6 {[%emt 0:00:15]} 69. Bb3 {[%emt 0:00:04]} Kc5 {[%emt 0:00:14]} 70. Bf7 {[%emt 0:00:14]} Kd4 {[%emt 0:01:12]} 71. Bg6 {[%emt 0:00:26]} Kc3 {[%emt 0:00:39]} 72. Bh7 {[%emt 0:00:09]} Kb2 {[%emt 0:02:52]} 73. Bg8 {[%emt 0:00:06]} b4 {[%emt 0:00:09]} 74. Bf7 {[%emt 0:00:09]} Kc3 {[%emt 0:00:07]} 75. Bg6 {[%emt 0:00:11]} Be1 {[%emt 0:00:22]} 76. Bh7 {[%emt 0:00:09]} Kb2 {[%emt 0:00:58]} 77. Bg8 {[%emt 0:00:05]} Kc3 {[%emt 0:00:19]} 78. Bh7 {[%emt 0:00:05]} b3 {[%emt 0:00:03]} 79. axb3 {[%emt 0:00:12]} Kxb3 {[%emt 0:00:06]} 80. Be4 {[%emt 0:00:06]} Bf2 {[%emt 0:00:09]} 81. Bh7 {[%emt 0:00:05]} Be1 {[%emt 0:00:06]} 82. Be4 {[%emt 0:00:04]} Bf2 {[%emt 0:00:04]} 83. Bh7 {[%emt 0:00:03]} Be1 {[%emt 0:00:07]} 84. Be4 {[%emt 0:00:07]} 1/2-1/2